[Event "FIDE World Cup G12-A 2024"]
[Site "Batumi"]
[Date "2024.06.23"]
[Round "1.1"]
[White "Qiu, Laurie"]
[Black "Wang, April"]
[Result "1-0"]
[ECO "B13"]
[WhiteElo "2068"]
[BlackElo "1622"]
[Annotator "NA RC"]
[PlyCount "79"]
[EventDate "2024.06.23"]
[EventType "swiss"]
[EventCountry "GEO"]
[SourceTitle "playchess.com"]
[Source "ChessBase"]
[SourceQuality "1"]
[TimeControl "5400+30"]

1. e4 {[%emt 0:00:01]} c6 {[%emt 0:00:08]} 2. d4 {[%emt 0:00:06]} d5 {[%emt 0:00:09]} 3. exd5 {[%emt 0:00:06]} cxd5 {[%emt 0:00:11]} 4. Nf3 {[%emt 0:00:07]} Nf6 {[%emt 0:00:25]} 5. c3 {[%emt 0:00:17]} Bg4 {[%emt 0:00:45]} 6. h3 {[%emt 0:00:21]} Bh5 {[%emt 0:00:26]} 7. Be2 {[%emt 0:00:21]} Nc6 {[%emt 0:00:33]} 8. O-O {[%emt 0:00:34]} e6 {[%emt 0:00:46]} 9. Bf4 {[%emt 0:00:22]} Bd6 {[%emt 0:01:22]} 10. Bxd6 {[%emt 0:04:21]} Qxd6 {[%emt 0:00:54]} 11. Nbd2 {[%emt 0:00:36]} O-O {[%emt 0:01:27]} 12. Re1 {[%emt 0:00:51]} a6 {[%emt 0:01:28]} 13. a4 {[%emt 0:00:58]} Rab8 {[%emt 0:01:49]} 14. a5 {[%emt 0:05:59]} Qc7 {[%emt 0:03:54]} 15. b4 {[%emt 0:02:03]} Rfc8 {[%emt 0:03:12]} 16. Rc1 {[%emt 0:02:25]} Bg6 {[%emt 0:02:02]} 17. Nb3 {[%emt 0:04:09]} Na7 {[%emt 0:06:03]} 18. Nc5 {[%emt 0:03:28]} Ne4 {[%emt 0:03:18]} 19. Bd3 {[%emt 0:04:51]} Nd6 {[%emt 0:04:19]} 20. Ne5 {[%emt 0:02:22]} Rd8 {[%emt 0:05:11]} 21. Bxg6 {[%emt 0:04:06]} hxg6 {[%emt 0:02:20]} 22. h4 {[%emt 0:00:45]} Qe7 {[%emt 0:08:19]} 23. h5 {[%emt 0:01:53]} gxh5 {[%emt 0:05:13]} 24. Qxh5 {[%emt 0:00:36]} Nc4 {[%emt 0:07:14]} 25. Nxc4 {[%emt 0:03:29]} dxc4 {[%emt 0:00:15]} 26. d5 {[%emt 0:02:25]} g6 {[%emt 0:07:09]} 27. Qe5 {[%emt 0:08:17]} Rd6 {[%emt 0:35:08]} 28. Re3 {[%emt 0:07:08]} Re8 {[%emt 0:00:00]} 29. Ne4 {[%emt 0:04:24]} exd5 {[%emt 0:00:00]} 30. Qxe7 {[%emt 0:00:14]} Rxe7 {[%emt 0:00:00]} 31. Nxd6 {[%emt 0:00:08]} Rd7 {[%emt 0:00:00]} 32. Re8+ {[%emt 0:00:14]} Kg7 {[%emt 0:00:00]} 33. Nc8 {[%emt 0:00:07]} Nb5 {[%emt 0:00:00]} 34. Re7 {[%emt 0:00:20]} Rd8 {[%emt 0:00:00]} 35. Nb6 {[%emt 0:00:10]} d4 {[%emt 0:00:00]} 36. cxd4 {[%emt 0:00:32]} c3 {[%emt 0:00:00]} 37. Na4 {[%emt 0:01:01]} Rxd4 {[%emt 0:00:00]} 38. Nxc3 {[%emt 0:00:11]} Nxc3 {[%emt 0:00:00]} 39. Rxc3 {[%emt 0:00:03]} Rxb4 {[%emt 0:00:00]} 40. Rcc7 {[%emt 0:00:07]} 1-0

[Event "FIDE World Cup G12-A 2024"]
[Site "Batumi"]
[Date "2024.06.23"]
[Round "1.2"]
[White "Ali, Maha"]
[Black "Lu, Xiahan (Luna)"]
[Result "0-1"]
[ECO "C01"]
[WhiteElo "1601"]
[BlackElo "1859"]
[Annotator "NA RC"]
[PlyCount "78"]
[EventDate "2024.06.23"]
[EventType "swiss"]
[EventCountry "GEO"]
[SourceTitle "playchess.com"]
[Source "ChessBase"]
[SourceQuality "1"]
[TimeControl "5400+30"]

1. e4 {[%emt 0:00:04]} e6 {[%emt 0:00:10]} 2. d4 {[%emt 0:00:06]} d5 {[%emt 0:00:07]} 3. exd5 {[%emt 0:00:07]} exd5 {[%emt 0:00:07]} 4. Bd3 {[%emt 0:00:27]} Nf6 {[%emt 0:00:13]} 5. Nf3 {[%emt 0:00:11]} c5 {[%emt 0:00:06]} 6. dxc5 {[%emt 0:00:57]} Bxc5 {[%emt 0:00:05]} 7. O-O {[%emt 0:01:03]} O-O {[%emt 0:00:29]} 8. h3 {[%emt 0:00:29]} Nc6 {[%emt 0:01:34]} 9. Bf4 {[%emt 0:01:51]} Be6 {[%emt 0:01:13]} 10. Nc3 {[%emt 0:01:46]} Re8 {[%emt 0:02:18]} 11. Re1 {[%emt 0:01:30]} Qb6 {[%emt 0:02:02]} 12. Qd2 {[%emt 0:01:57]} Bb4 {[%emt 0:04:02]} 13. a3 {[%emt 0:03:46]} Bxc3 {[%emt 0:01:38]} 14. Qxc3 {[%emt 0:03:13]} Rac8 {[%emt 0:03:00]} 15. Qd2 {[%emt 0:03:44]} Na5 {[%emt 0:09:44]} 16. Be5 {[%emt 0:05:48]} Nd7 {[%emt 0:04:49]} 17. Bd4 {[%emt 0:11:07]} Qd8 {[%emt 0:01:48]} 18. Ne5 {[%emt 0:03:11]} Nxe5 {[%emt 0:01:07]} 19. Bxe5 {[%emt 0:00:38]} Nc4 {[%emt 0:01:15]} 20. Bxc4 {[%emt 0:05:05]} Rxc4 {[%emt 0:00:17]} 21. Rad1 {[%emt 0:02:14]} Qh4 {[%emt 0:01:48]} 22. Bg3 {[%emt 0:05:23]} Qe7 {[%emt 0:02:36]} 23. b3 {[%emt 0:03:41]} Rc6 {[%emt 0:01:39]} 24. a4 {[%emt 0:02:50]} Qd7 {[%emt 0:01:56]} 25. f3 {[%emt 0:05:53]} Qc8 {[%emt 0:02:15]} 26. Re2 {[%emt 0:01:58]} Rd8 {[%emt 0:03:14]} 27. Bh4 {[%emt 0:01:41]} f6 {[%emt 0:00:39]} 28. c4 {[%emt 0:01:59]} d4 {[%emt 0:00:46]} 29. Re4 {[%emt 0:01:29]} d3 {[%emt 0:00:43]} 30. g4 {[%emt 0:31:22]} Bf7 {[%emt 0:01:25]} 31. f4 {[%emt 0:00:00]} Rcd6 {[%emt 0:02:32]} 32. Bg3 {[%emt 0:00:00]} f5 {[%emt 0:02:35]} 33. gxf5 {[%emt 0:00:00]} Qxf5 {[%emt 0:00:12]} 34. Re3 {[%emt 0:00:00]} Qxh3 {[%emt 0:03:06]} 35. f5 {[%emt 0:00:00]} Rd4 {[%emt 0:01:05]} 36. Qf2 {[%emt 0:00:00]} d2 {[%emt 0:02:11]} 37. Be5 {[%emt 0:00:00]} Qg4+ {[%emt 0:00:46]} 38. Kh2 {[%emt 0:00:00]} Qxd1 {[%emt 0:00:12]} 39. Qg3 {[%emt 0:00:00]} Qh5+ {[%emt 0:44:16]} 0-1

[Event "FIDE World Cup G12-A 2024"]
[Site "Batumi"]
[Date "2024.06.23"]
[Round "1.3"]
[White "Kaminska, Zuzanna"]
[Black "Kutateladze, Anastasia"]
[Result "1-0"]
[ECO "B54"]
[WhiteElo "1848"]
[BlackElo "1598"]
[Annotator "NA RC"]
[PlyCount "82"]
[EventDate "2024.06.23"]
[EventType "swiss"]
[EventCountry "GEO"]
[SourceTitle "playchess.com"]
[Source "ChessBase"]
[SourceQuality "1"]
[TimeControl "5400+30"]

1. e4 {[%emt 0:00:04]} c5 {[%emt 0:00:07]} 2. Nf3 {[%emt 0:00:07]} e6 {[%emt 0:00:04]} 3. c4 {[%emt 0:00:08]} Nc6 {[%emt 0:00:08]} 4. Nc3 {[%emt 0:00:10]} Nf6 {[%emt 0:01:47]} 5. Be2 {[%emt 0:02:27]} Be7 {[%emt 0:07:23]} 6. d4 {[%emt 0:01:59]} cxd4 {[%emt 0:00:17]} 7. Nxd4 {[%emt 0:00:16]} d6 {[%emt 0:07:20]} 8. O-O {[%emt 0:01:31]} O-O {[%emt 0:07:09]} 9. Be3 {[%emt 0:02:54]} h6 {[%emt 0:16:28]} 10. Qd2 {[%emt 0:04:21]} Ne5 {[%emt 0:28:20]} 11. h3 {[%emt 0:06:23]} a6 {[%emt 0:05:04]} 12. Rfd1 {[%emt 0:06:06]} Qc7 {[%emt 0:03:08]} 13. Rac1 {[%emt 0:07:08]} Bd7 {[%emt 0:06:32]} 14. f4 {[%emt 0:07:48]} Nc6 {[%emt 0:06:30]} 15. Bf3 {[%emt 0:04:41]} Rad8 {[%emt 0:03:31]} 16. Nd5 {[%emt 0:07:55]} Nxd5 {[%emt 0:02:18]} 17. cxd5 {[%emt 0:00:49]} Rc8 {[%emt 0:00:55]} 18. dxc6 {[%emt 0:00:16]} bxc6 {[%emt 0:00:04]} 19. Nb3 {[%emt 0:02:03]} Qb8 {[%emt 0:01:53]} 20. e5 {[%emt 0:01:26]} d5 {[%emt 0:00:08]} 21. Bc5 {[%emt 0:02:11]} Bxc5+ {[%emt 0:00:37]} 22. Nxc5 {[%emt 0:00:28]} Qa7 {[%emt 0:00:19]} 23. Kh1 {[%emt 0:01:13]} Ra8 {[%emt 0:00:42]} 24. Qc3 {[%emt 0:01:54]} Rfc8 {[%emt 0:00:14]} 25. Rd4 {[%emt 0:03:29]} Be8 {[%emt 0:00:22]} 26. Rb4 {[%emt 0:04:38]} Rab8 {[%emt 0:00:47]} 27. Rxb8 {[%emt 0:00:31]} Rxb8 {[%emt 0:00:02]} 28. b4 {[%emt 0:01:19]} Ra8 {[%emt 0:00:37]} 29. a4 {[%emt 0:05:47]} a5 {[%emt 0:00:19]} 30. bxa5 {[%emt 0:03:56]} Qxa5 {[%emt 0:00:05]} 31. Qxa5 {[%emt 0:00:53]} Rxa5 {[%emt 0:00:04]} 32. Kg1 {[%emt 0:01:18]} Kf8 {[%emt 0:00:07]} 33. Kf2 {[%emt 0:00:19]} Ke7 {[%emt 0:00:05]} 34. Ke3 {[%emt 0:00:17]} f6 {[%emt 0:00:42]} 35. Kd4 {[%emt 0:01:01]} fxe5+ {[%emt 0:01:59]} 36. fxe5 {[%emt 0:00:22]} g5 {[%emt 0:00:00]} 37. Rb1 {[%emt 0:00:00]} Ra7 {[%emt 0:00:35]} 38. Rb7+ {[%emt 0:00:57]} Rxb7 {[%emt 0:00:02]} 39. Nxb7 {[%emt 0:00:09]} Kd7 {[%emt 0:00:11]} 40. Nc5+ {[%emt 0:00:10]} Ke7 {[%emt 0:00:02]} 41. a5 {[%emt 0:00:07]} Bf7 {[%emt 0:00:04]} 1-0

[Event "FIDE World Cup G12-A 2024"]
[Site "Batumi"]
[Date "2024.06.23"]
[Round "1.4"]
[White "Mirzaliyeva, Leyla"]
[Black "Diaskyzy, Daliya"]
[Result "1-0"]
[ECO "B10"]
[WhiteElo "1548"]
[BlackElo "1793"]
[Annotator "NA RC"]
[PlyCount "77"]
[EventDate "2024.06.23"]
[EventType "swiss"]
[EventCountry "GEO"]
[SourceTitle "playchess.com"]
[Source "ChessBase"]
[SourceQuality "1"]
[TimeControl "5400+30"]

1. e4 {[%emt 0:00:03]} c6 {[%emt 0:00:05]} 2. d3 {[%emt 0:00:06]} d5 {[%emt 0:00:14]} 3. Nd2 {[%emt 0:00:09]} e5 {[%emt 0:00:04]} 4. Ngf3 {[%emt 0:00:10]} Bd6 {[%emt 0:00:11]} 5. d4 {[%emt 0:00:25]} exd4 {[%emt 0:04:16]} 6. Bd3 {[%emt 0:00:09]} Bg4 {[%emt 0:03:05]} 7. Qe2 {[%emt 0:07:06]} Qe7 {[%emt 0:08:16]} 8. exd5 {[%emt 0:08:01]} Qxe2+ {[%emt 0:04:26]} 9. Bxe2 {[%emt 0:00:19]} c5 {[%emt 0:04:15]} 10. Nxd4 {[%emt 0:00:48]} Bxe2 {[%emt 0:08:25]} 11. Nxe2 {[%emt 0:00:08]} Nf6 {[%emt 0:00:02]} 12. c4 {[%emt 0:02:23]} Nbd7 {[%emt 0:01:31]} 13. Nc3 {[%emt 0:05:08]} a6 {[%emt 0:04:39]} 14. Nf3 {[%emt 0:12:32]} Rb8 {[%emt 0:02:33]} 15. a4 {[%emt 0:07:11]} b6 {[%emt 0:02:47]} 16. Be3 {[%emt 0:03:36]} Ne5 {[%emt 0:04:53]} 17. Nxe5 {[%emt 0:05:33]} Bxe5 {[%emt 0:00:06]} 18. f3 {[%emt 0:00:11]} Kd7 {[%emt 0:03:26]} 19. Kd2 {[%emt 0:02:37]} Rhe8 {[%emt 0:07:01]} 20. Rae1 {[%emt 0:06:20]} Nh5 {[%emt 0:16:37]} 21. g3 {[%emt 0:06:45]} f5 {[%emt 0:01:07]} 22. Bf2 {[%emt 0:07:57]} g5 {[%emt 0:02:58]} 23. Rhg1 {[%emt 0:07:27]} Nf6 {[%emt 0:01:50]} 24. Kc2 {[%emt 0:03:02]} Bxc3 {[%emt 0:06:23]} 25. Kxc3 {[%emt 0:00:17]} Kd6 {[%emt 0:01:09]} 26. Be3 {[%emt 0:00:30]} h6 {[%emt 0:00:58]} 27. h4 {[%emt 0:00:21]} Rg8 {[%emt 0:01:17]} 28. Bxc5+ {[%emt 0:02:57]} Kxc5 {[%emt 0:01:55]} 29. b4+ {[%emt 0:00:07]} Kd6 {[%emt 0:00:03]} 30. Re6+ {[%emt 0:00:06]} Kd7 {[%emt 0:00:06]} 31. Rxf6 {[%emt 0:00:05]} gxh4 {[%emt 0:00:08]} 32. g4 {[%emt 0:05:33]} fxg4 {[%emt 0:02:10]} 33. fxg4 {[%emt 0:00:54]} h5 {[%emt 0:00:16]} 34. g5 {[%emt 0:00:17]} h3 {[%emt 0:02:58]} 35. g6 {[%emt 0:00:34]} a5 {[%emt 0:01:32]} 36. b5 {[%emt 0:00:13]} Kc7 {[%emt 0:03:39]} 37. Rf7+ {[%emt 0:00:29]} Kd6 {[%emt 0:00:51]} 38. g7 {[%emt 0:00:08]} h2 {[%emt 0:01:00]} 39. Rg6+ {[%emt 0:09:23]} 1-0

[Event "FIDE World Cup G12-A 2024"]
[Site "Batumi"]
[Date "2024.06.23"]
[Round "1.5"]
[White "Venskaya, Nika"]
[Black "Kedelidze, Aneta"]
[Result "1-0"]
[ECO "E64"]
[WhiteElo "1774"]
[BlackElo "1544"]
[Annotator "NA RC"]
[PlyCount "93"]
[EventDate "2024.06.23"]
[EventType "swiss"]
[EventCountry "GEO"]
[SourceTitle "playchess.com"]
[Source "ChessBase"]
[SourceQuality "1"]
[TimeControl "5400+30"]

1. d4 {[%emt 0:00:03]} Nf6 {[%emt 0:00:33]} 2. Nf3 {[%emt 0:00:22]} g6 {[%emt 0:00:06]} 3. g3 {[%emt 0:00:42]} Bg7 {[%emt 0:00:12]} 4. Bg2 {[%emt 0:00:05]} d6 {[%emt 0:00:30]} 5. c4 {[%emt 0:00:26]} O-O {[%emt 0:00:12]} 6. Nc3 {[%emt 0:00:09]} c5 {[%emt 0:01:10]} 7. d5 {[%emt 0:06:41]} a6 {[%emt 0:01:27]} 8. a4 {[%emt 0:04:18]} Nbd7 {[%emt 0:04:52]} 9. h3 {[%emt 0:08:37]} Rb8 {[%emt 0:07:15]} 10. O-O {[%emt 0:04:57]} Ne8 {[%emt 0:03:47]} 11. Qd3 {[%emt 0:05:02]} Nc7 {[%emt 0:01:51]} 12. e4 {[%emt 0:04:16]} Ne5 {[%emt 0:12:40]} 13. Nxe5 {[%emt 0:01:06]} Bxe5 {[%emt 0:01:34]} 14. f4 {[%emt 0:08:05]} Bd4+ {[%emt 0:00:47]} 15. Be3 {[%emt 0:00:50]} Bxe3+ {[%emt 0:04:28]} 16. Qxe3 {[%emt 0:02:30]} b5 {[%emt 0:01:19]} 17. b3 {[%emt 0:10:18]} bxc4 {[%emt 0:04:54]} 18. bxc4 {[%emt 0:00:10]} Rb4 {[%emt 0:00:38]} 19. Qd3 {[%emt 0:01:07]} Bd7 {[%emt 0:01:51]} 20. g4 {[%emt 0:05:26]} f5 {[%emt 0:11:59]} 21. gxf5 {[%emt 0:11:23]} gxf5 {[%emt 0:00:08]} 22. e5 {[%emt 0:01:09]} Kh8 {[%emt 0:08:34]} 23. Kh1 {[%emt 0:02:02]} Qe8 {[%emt 0:02:49]} 24. e6 {[%emt 0:05:14]} Bxa4 {[%emt 0:02:50]} 25. Nxa4 {[%emt 0:02:04]} Rxa4 {[%emt 0:00:17]} 26. Qc3+ {[%emt 0:00:02]} Rf6 {[%emt 0:00:24]} 27. Rab1 {[%emt 0:00:06]} a5 {[%emt 0:02:56]} 28. Rb7 {[%emt 0:01:55]} Qc8 {[%emt 0:18:53]} 29. Ra7 {[%emt 0:01:20]} Qb8 {[%emt 0:01:08]} 30. Rxa5 {[%emt 0:00:10]} Rxa5 {[%emt 0:00:16]} 31. Qxa5 {[%emt 0:00:02]} Rg6 {[%emt 0:00:24]} 32. Qc3+ {[%emt 0:01:38]} Kg8 {[%emt 0:00:20]} 33. Ra1 {[%emt 0:01:40]} Qb7 {[%emt 0:02:03]} 34. Qc2 {[%emt 0:00:57]} Rf6 {[%emt 0:01:01]} 35. Rb1 {[%emt 0:01:15]} Qa7 {[%emt 0:00:38]} 36. Qb3 {[%emt 0:00:35]} Ne8 {[%emt 0:02:09]} 37. Qb8 {[%emt 0:05:24]} Qxb8 {[%emt 0:00:06]} 38. Rxb8 {[%emt 0:00:01]} Kf8 {[%emt 0:00:31]} 39. Bf3 {[%emt 0:00:09]} Rh6 {[%emt 0:00:10]} 40. Kh2 {[%emt 0:00:14]} Rh4 {[%emt 0:00:57]} 41. Kg3 {[%emt 0:00:06]} Rh6 {[%emt 0:00:05]} 42. h4 {[%emt 0:00:05]} Rg6+ {[%emt 0:00:27]} 43. Kh3 {[%emt 0:01:01]} Rh6 {[%emt 0:00:23]} 44. Be2 {[%emt 0:00:11]} Rf6 {[%emt 0:02:12]} 45. Bh5 {[%emt 0:00:08]} Rg6 {[%emt 0:00:23]} 46. Bxg6 {[%emt 0:00:06]} hxg6 {[%emt 0:00:02]} 47. Ra8 {[%emt 0:00:10]} 1-0

[Event "FIDE World Cup G12-A 2024"]
[Site "Batumi"]
[Date "2024.06.23"]
[Round "1.6"]
[White "Giorgadze, Mariam"]
[Black "Wu, Yiting"]
[Result "0-1"]
[ECO "B18"]
[WhiteElo "1533"]
[BlackElo "1758"]
[Annotator "NA RC"]
[PlyCount "146"]
[EventDate "2024.06.23"]
[EventType "swiss"]
[EventCountry "GEO"]
[SourceTitle "playchess.com"]
[Source "ChessBase"]
[SourceQuality "1"]
[TimeControl "5400+30"]

1. e4 {[%emt 0:00:01]} c6 {[%emt 0:00:09]} 2. d4 {[%emt 0:00:09]} d5 {[%emt 0:00:07]} 3. Nd2 {[%emt 0:00:04]} dxe4 {[%emt 0:00:12]} 4. Nxe4 {[%emt 0:00:05]} Bf5 {[%emt 0:00:07]} 5. Ng3 {[%emt 0:00:04]} Bg6 {[%emt 0:00:10]} 6. Bc4 {[%emt 0:00:03]} e6 {[%emt 0:01:28]} 7. N1e2 {[%emt 0:00:06]} Bd6 {[%emt 0:01:57]} 8. O-O {[%emt 0:04:03]} Nf6 {[%emt 0:01:15]} 9. c3 {[%emt 0:02:00]} O-O {[%emt 0:01:56]} 10. Nf4 {[%emt 0:03:19]} Bxf4 {[%emt 0:02:48]} 11. Bxf4 {[%emt 0:00:06]} Nd5 {[%emt 0:00:55]} 12. Bd2 {[%emt 0:10:42]} Nd7 {[%emt 0:04:51]} 13. Re1 {[%emt 0:02:18]} N7f6 {[%emt 0:04:01]} 14. Bg5 {[%emt 0:14:54]} h6 {[%emt 0:03:16]} 15. Bxf6 {[%emt 0:02:52]} Nxf6 {[%emt 0:01:17]} 16. h3 {[%emt 0:06:55]} Qb6 {[%emt 0:01:56]} 17. Qb3 {[%emt 0:01:45]} Rfd8 {[%emt 0:03:39]} 18. Rad1 {[%emt 0:04:45]} Rd6 {[%emt 0:09:28]} 19. Re2 {[%emt 0:08:37]} Rad8 {[%emt 0:01:21]} 20. Rde1 {[%emt 0:01:31]} Qc7 {[%emt 0:04:05]} 21. Re5 {[%emt 0:06:15]} Nd7 {[%emt 0:06:35]} 22. R5e3 {[%emt 0:03:35]} Nb6 {[%emt 0:02:14]} 23. Ne4 {[%emt 0:04:09]} Bxe4 {[%emt 0:02:11]} 24. Rxe4 {[%emt 0:00:07]} Nxc4 {[%emt 0:00:14]} 25. Qxc4 {[%emt 0:00:06]} Qb6 {[%emt 0:00:44]} 26. b3 {[%emt 0:15:11]} Rd5 {[%emt 0:01:51]} 27. Re5 {[%emt 0:00:16]} Qc7 {[%emt 0:06:43]} 28. Qe2 {[%emt 0:05:48]} c5 {[%emt 0:02:09]} 29. Rxd5 {[%emt 0:00:10]} Rxd5 {[%emt 0:00:08]} 30. dxc5 {[%emt 0:00:08]} Qxc5 {[%emt 0:00:25]} 31. c4 {[%emt 0:01:59]} Rd4 {[%emt 0:01:38]} 32. Rd1 {[%emt 0:01:52]} e5 {[%emt 0:02:02]} 33. Re1 {[%emt 0:01:49]} f6 {[%emt 0:01:17]} 34. Qe3 {[%emt 0:00:34]} Qd6 {[%emt 0:00:45]} 35. Qf3 {[%emt 0:00:45]} Qd7 {[%emt 0:00:19]} 36. Qe3 {[%emt 0:00:35]} a6 {[%emt 0:03:59]} 37. Re2 {[%emt 0:00:34]} Kf7 {[%emt 0:00:32]} 38. g4 {[%emt 0:00:38]} Rd3 {[%emt 0:00:46]} 39. Qe4 {[%emt 0:00:27]} Rxh3 {[%emt 0:01:48]} 40. Qd5+ {[%emt 0:00:17]} Qxd5 {[%emt 0:00:20]} 41. cxd5 {[%emt 0:00:02]} Rd3 {[%emt 0:01:27]} 42. Rc2 {[%emt 0:00:09]} Rxd5 {[%emt 0:00:33]} 43. Rc7+ {[%emt 0:00:04]} Kg6 {[%emt 0:00:11]} 44. Rxb7 {[%emt 0:00:07]} a5 {[%emt 0:17:01]} 45. a4 {[%emt 0:00:13]} Rd1+ {[%emt 0:02:52]} 46. Kg2 {[%emt 0:00:04]} Rb1 {[%emt 0:00:55]} 47. f3 {[%emt 0:00:23]} f5 {[%emt 0:01:37]} 48. gxf5+ {[%emt 0:01:30]} Kxf5 {[%emt 0:00:09]} 49. Rxg7 {[%emt 0:00:11]} Rxb3 {[%emt 0:00:10]} 50. Rf7+ {[%emt 0:00:13]} Kg5 {[%emt 0:01:39]} 51. Ra7 {[%emt 0:01:59]} Ra3 {[%emt 0:01:20]} 52. Rxa5 {[%emt 0:00:39]} Kf4 {[%emt 0:00:07]} 53. Ra8 {[%emt 0:00:38]} Ra2+ {[%emt 0:00:06]} 54. Kh3 {[%emt 0:00:14]} Kxf3 {[%emt 0:00:12]} 55. a5 {[%emt 0:00:43]} e4 {[%emt 0:02:01]} 56. a6 {[%emt 0:00:20]} Ra5 {[%emt 0:02:52]} 57. Kh4 {[%emt 0:00:46]} e3 {[%emt 0:00:39]} 58. a7 {[%emt 0:01:06]} Ke2 {[%emt 0:03:22]} 59. Kg4 {[%emt 0:00:33]} Ra4+ {[%emt 0:00:30]} 60. Kh5 {[%emt 0:00:29]} Ra6 {[%emt 0:00:10]} 61. Kg4 {[%emt 0:00:11]} Rg6+ {[%emt 0:00:29]} 62. Kh5 {[%emt 0:00:07]} Rg7 {[%emt 0:00:33]} 63. Kxh6 {[%emt 0:00:31]} Rd7 {[%emt 0:00:09]} 64. Rb8 {[%emt 0:01:12]} Rxa7 {[%emt 0:00:08]} 65. Rb2+ {[%emt 0:00:06]} Kd1 {[%emt 0:00:11]} 66. Rb1+ {[%emt 0:00:06]} Kc2 {[%emt 0:00:08]} 67. Rb8 {[%emt 0:00:12]} Re7 {[%emt 0:00:11]} 68. Rc8+ {[%emt 0:00:07]} Kd3 {[%emt 0:00:11]} 69. Rd8+ {[%emt 0:00:05]} Ke4 {[%emt 0:00:30]} 70. Rd1 {[%emt 0:00:17]} e2 {[%emt 0:00:10]} 71. Ra1 {[%emt 0:00:15]} Kf3 {[%emt 0:00:15]} 72. Ra3+ {[%emt 0:00:19]} Kf2 {[%emt 0:00:18]} 73. Ra2 {[%emt 0:00:06]} Kf1 {[%emt 0:00:08]} 0-1

[Event "FIDE World Cup G12-A 2024"]
[Site "Batumi"]
[Date "2024.06.23"]
[Round "1.7"]
[White "Xue, Tianhao"]
[Black "Sevastsyanchuk, Anastasiya"]
[Result "1-0"]
[ECO "B12"]
[WhiteElo "1754"]
[BlackElo "1531"]
[Annotator "NA RC"]
[PlyCount "61"]
[EventDate "2024.06.23"]
[EventType "swiss"]
[EventCountry "GEO"]
[SourceTitle "playchess.com"]
[Source "ChessBase"]
[SourceQuality "1"]
[TimeControl "5400+30"]

1. e4 {[%emt 0:00:02]} c6 {[%emt 0:00:06]} 2. d4 {[%emt 0:00:07]} d5 {[%emt 0:00:07]} 3. f3 {[%emt 0:00:05]} dxe4 {[%emt 0:00:08]} 4. fxe4 {[%emt 0:00:06]} e5 {[%emt 0:00:09]} 5. Nf3 {[%emt 0:00:07]} Be6 {[%emt 0:00:08]} 6. c3 {[%emt 0:00:09]} Nd7 {[%emt 0:00:34]} 7. Bd3 {[%emt 0:00:39]} Bd6 {[%emt 0:01:42]} 8. Be3 {[%emt 0:00:17]} Ngf6 {[%emt 0:01:13]} 9. O-O {[%emt 0:02:12]} Qc7 {[%emt 0:01:27]} 10. Nbd2 {[%emt 0:06:02]} Ng4 {[%emt 0:01:31]} 11. Qe2 {[%emt 0:11:38]} exd4 {[%emt 0:02:03]} 12. cxd4 {[%emt 0:03:05]} Nxh2 {[%emt 0:00:31]} 13. Nxh2 {[%emt 0:01:46]} Bxh2+ {[%emt 0:00:07]} 14. Kh1 {[%emt 0:01:21]} h5 {[%emt 0:06:09]} 15. e5 {[%emt 0:01:46]} Bg3 {[%emt 0:00:49]} 16. Ne4 {[%emt 0:01:07]} h4 {[%emt 0:11:27]} 17. Nd6+ {[%emt 0:04:33]} Ke7 {[%emt 0:03:08]} 18. Qf3 {[%emt 0:21:32]} f6 {[%emt 0:02:27]} 19. Bf5 {[%emt 0:11:06]} Bd5 {[%emt 0:12:00]} 20. Be4 {[%emt 0:14:06]} Be6 {[%emt 0:08:45]} 21. Nf5+ {[%emt 0:04:10]} Bxf5 {[%emt 0:03:54]} 22. Bxf5 {[%emt 0:02:18]} Raf8 {[%emt 0:09:59]} 23. Qg4 {[%emt 0:02:07]} Kd8 {[%emt 0:07:03]} 24. Qxg7 {[%emt 0:05:33]} Rhg8 {[%emt 0:05:45]} 25. Qh7 {[%emt 0:01:16]} Rh8 {[%emt 0:01:54]} 26. Qg6 {[%emt 0:00:51]} fxe5 {[%emt 0:00:39]} 27. dxe5 {[%emt 0:02:09]} Bxe5 {[%emt 0:00:34]} 28. Rad1 {[%emt 0:02:20]} Rhg8 {[%emt 0:09:06]} 29. Qe6 {[%emt 0:01:31]} Rg7 {[%emt 0:00:54]} 30. Bh6 {[%emt 0:00:39]} Re8 {[%emt 0:00:38]} 31. Bg5+ {[%emt 0:00:08]} 1-0

[Event "FIDE World Cup G12-A 2024"]
[Site "Batumi"]
[Date "2024.06.23"]
[Round "1.8"]
[White "Zavivaeva, Angelina"]
[Black "Chichinadze, Anastasia"]
[Result "0-1"]
[ECO "B01"]
[WhiteElo "1489"]
[BlackElo "1724"]
[Annotator "NA RC"]
[PlyCount "99"]
[EventDate "2024.06.23"]
[EventType "swiss"]
[EventCountry "GEO"]
[SourceTitle "playchess.com"]
[Source "ChessBase"]
[SourceQuality "1"]
[TimeControl "5400+30"]

1. e4 {[%emt 0:00:01]} d5 {[%emt 0:00:17]} 2. exd5 {[%emt 0:00:07]} Nf6 {[%emt 0:00:01]} 3. d4 {[%emt 0:00:25]} Nxd5 {[%emt 0:00:04]} 4. Nf3 {[%emt 0:00:39]} g6 {[%emt 0:00:18]} 5. Bc4 {[%emt 0:02:05]} Bg7 {[%emt 0:00:10]} 6. O-O {[%emt 0:00:12]} O-O {[%emt 0:00:06]} 7. Bg5 {[%emt 0:01:16]} c6 {[%emt 0:19:02]} 8. c3 {[%emt 0:00:30]} Be6 {[%emt 0:02:01]} 9. Nbd2 {[%emt 0:00:25]} Nd7 {[%emt 0:00:25]} 10. Qe2 {[%emt 0:02:49]} Nc7 {[%emt 0:05:40]} 11. Bxe6 {[%emt 0:01:10]} Nxe6 {[%emt 0:00:06]} 12. Bh4 {[%emt 0:00:31]} Re8 {[%emt 0:13:17]} 13. Nc4 {[%emt 0:01:50]} Nf6 {[%emt 0:01:57]} 14. Rfe1 {[%emt 0:00:47]} Nf4 {[%emt 0:04:04]} 15. Qc2 {[%emt 0:02:40]} N6d5 {[%emt 0:06:57]} 16. Rad1 {[%emt 0:04:11]} Qc8 {[%emt 0:07:28]} 17. Nce5 {[%emt 0:04:59]} f6 {[%emt 0:07:09]} 18. Nd3 {[%emt 0:03:05]} Qf5 {[%emt 0:03:34]} 19. Rd2 {[%emt 0:03:16]} Nh3+ {[%emt 0:09:25]} 20. Kh1 {[%emt 0:03:35]} h5 {[%emt 0:04:13]} 21. c4 {[%emt 0:05:45]} Bh6 {[%emt 0:08:52]} 22. cxd5 {[%emt 0:08:52]} Bxd2 {[%emt 0:00:08]} 23. Qxd2 {[%emt 0:00:49]} g5 {[%emt 0:02:04]} 24. Bg3 {[%emt 0:01:28]} Qxd5 {[%emt 0:00:24]} 25. Qe3 {[%emt 0:01:41]} g4 {[%emt 0:02:32]} 26. gxh3 {[%emt 0:02:37]} Qxf3+ {[%emt 0:00:04]} 27. Qxf3 {[%emt 0:00:18]} gxf3 {[%emt 0:00:04]} 28. Nf4 {[%emt 0:01:50]} Kf7 {[%emt 0:01:12]} 29. Nxh5 {[%emt 0:00:22]} Rad8 {[%emt 0:00:33]} 30. Re3 {[%emt 0:04:31]} Rh8 {[%emt 0:01:23]} 31. Nf4 {[%emt 0:00:40]} e5 {[%emt 0:00:16]} 32. Nd3 {[%emt 0:05:33]} Rxd4 {[%emt 0:00:14]} 33. Ne1 {[%emt 0:11:54]} e4 {[%emt 0:01:36]} 34. Kg1 {[%emt 0:00:35]} Rxh3 {[%emt 0:00:59]} 35. Rb3 {[%emt 0:05:53]} Rd7 {[%emt 0:00:28]} 36. Rb4 {[%emt 0:01:33]} f5 {[%emt 0:00:12]} 37. Ra4 {[%emt 0:02:54]} a6 {[%emt 0:00:29]} 38. Ra5 {[%emt 0:00:48]} Rd5 {[%emt 0:00:26]} 39. Rxd5 {[%emt 0:01:14]} cxd5 {[%emt 0:01:50]} 40. Nc2 {[%emt 0:00:48]} Rh8 {[%emt 0:00:00]} 41. Nd4 {[%emt 0:00:03]} Kf6 {[%emt 0:00:00]} 42. Bf4 {[%emt 0:00:08]} Rc8 {[%emt 0:00:00]} 43. b3 {[%emt 0:06:04]} Rc3 {[%emt 0:00:15]} 44. h4 {[%emt 0:00:14]} Rd3 {[%emt 0:00:06]} 45. Nc2 {[%emt 0:00:57]} Rd1+ {[%emt 0:00:33]} 46. Kh2 {[%emt 0:00:03]} d4 {[%emt 0:00:08]} 47. h5 {[%emt 0:01:49]} e3 {[%emt 0:00:47]} 48. fxe3 {[%emt 0:05:47]} f2 {[%emt 0:00:36]} 49. Be5+ {[%emt 0:01:14]} Kxe5 {[%emt 0:00:24]} 50. exd4+ {[%emt 0:00:11]} 0-1